bitfinex-derivatives/quotes_SOLF0:USTF0_20251107
["timestamp","ask_amount","ask_price","bid_price","bid_amount"]
[1762517350059,3.17,153.46,153.37,72.1909]
[1762517350262,3.17,153.46,153.37,69.51]
[1762517350759,0.0461585,153.43,153.4,0.04759003]
[1762517350962,3.2161585,153.43,153.4,0.04759003]
[1762517351460,0.0461585,153.43,153.4,3.23759003]
[1762517352564,0.0461585,153.43,153.4,0.04759003]
[1762517352960,0.0461585,153.43,153.42,3.19]
[1762517355168,0.0461585,153.43,153.42,4.49]
[1762517355363,0.0461585,153.43,153.4,0.04759003]
[1762517355672,3.0461585,153.43,153.4,0.04759003]
[1762517355866,0.0461585,153.43,153.4,3.15759003]
[1762517356564,0.0461585,153.43,153.4,5.91769003]
[1762517356765,0.0461585,153.43,153.41,3.11]
[1762517357371,0.0461585,153.43,153.4,5.91769003]
[1762517357671,0.0461585,153.43,153.4,9.02769003]
[1762517358864,3.0461585,153.43,153.4,0.04759003]
[1762517359064,0.0461585,153.43,153.4,0.04759003]
[1762517360058,0.0461585,153.43,153.4,3.15759003]
[1762517360264,0.0461585,153.43,153.4,9.02749003]
[1762517360475,0.0461585,153.43,153.41,3.11]
[1762517360673,0.0461585,153.43,153.41,8.9794]
[1762517360869,3.0,153.5,153.43,3.11]
[1762517361564,5.23857847,153.54,153.46,3.11]
[1762517361763,5.99972411,153.56,153.46,3.11]
[1762517361764,3.0,153.57,153.46,3.11]
[1762517361971,0.04757624,153.52,153.5,5.8661]
[1762517362174,3.04757624,153.52,153.49,0.04506362]
[1762517364373,0.04757624,153.52,153.49,3.15506362]
[1762517364775,0.04757624,153.52,153.5,5.8661]
[1762517364976,0.04757624,153.52,153.5,8.9761]
[1762517365278,0.04757624,153.52,153.5,5.8661]
[1762517366370,0.04757624,153.52,153.51,3.11]
[1762517367275,1.13283094,153.7,153.53,3.11]
[1762517367276,3.0,153.6,153.53,3.11]
[1762517367575,8.23303769,153.59,153.53,3.11]
[1762517367780,8.23303769,153.58,153.5,3.11]
[1762517367983,3.0,153.58,153.5,3.11]
[1762517368181,0.04319099,153.56,153.52,0.04476316]
[1762517368382,0.04319099,153.56,153.52,9.02016316]
[1762517369784,0.04319099,153.56,153.52,0.04476316]
[1762517369785,3.04319099,153.56,153.52,0.04476316]
[1762517370080,3.0,153.54,153.52,0.04476316]
[1762517370484,3.0,153.53,153.48,66.36]
[1762517370878,3.0,153.53,153.44,3.11]
[1762517371577,0.04782339,153.5,153.47,0.04710526]
[1762517371987,0.04782339,153.5,153.47,3.15710526]
[1762517372182,0.04782339,153.5,153.47,0.04710526]
[1762517372386,0.04782339,153.5,153.47,3.15710526]
[1762517372780,0.04782339,153.5,153.49,3.11]
[1762517373474,3.0,153.57,153.5,3.11]
[1762517374382,3.0,153.55,153.47,11.69382082]
[1762517374688,3.04991989,153.55,153.51,0.04499397]
[1762517378590,3.04991989,153.55,153.51,5.91079397]
[1762517378991,3.0,153.53,153.51,0.04499397]
[1762517379295,5.27456339,153.52,153.51,0.04499397]
[1762517379589,8.47456339,153.52,153.51,0.04499397]
[1762517380891,5.27456339,153.52,153.51,0.04499397]
[1762517381684,5.27456339,153.52,153.51,3.19499397]
[1762517381888,0.04991989,153.55,153.51,3.19499397]
[1762517382089,5.28783779,153.54,153.51,3.19499397]
[1762517382279,5.28783779,153.53,153.51,3.19499397]
[1762517382480,5.28783779,153.52,153.51,9.06099397]
[1762517382887,3.779e-05,153.52,153.51,10.36099397]
[1762517384784,0.04991989,153.55,153.54,5.8648]
[1762517385489,0.04991989,153.55,153.54,8.9248]
[1762517385783,0.04991989,153.55,153.54,5.8648]
[1762517386185,0.04991989,153.55,153.54,8.9248]
[1762517386687,6.049644,153.55,153.54,8.9248]
[1762517386890,6.049644,153.55,153.54,5.8648]
[1762517387091,0.04991989,153.55,153.54,5.8648]
[1762517387884,6.049644,153.55,153.54,5.8648]
[1762517388485,0.04991989,153.55,153.54,5.8648]
[1762517388690,0.04991989,153.55,153.54,8.9248]
[1762517389382,0.04991989,153.55,153.52,3.06]
[1762517389583,9.059644,153.55,153.51,3.10499397]
[1762517390584,9.059644,153.55,153.51,8.97069397]
[1762517390785,9.00972411,153.54,153.51,5.91069397]
[1762517391180,0.04991989,153.55,153.51,0.04499397]
[1762517391181,9.00972411,153.53,153.51,0.04499397]
[1762517391386,3.01,153.52,153.51,0.04499397]
[1762517391784,9.00972411,153.52,153.51,0.04499397]
[1762517392388,3.01,153.52,153.51,0.04499397]
[1762517392691,9.00972411,153.52,153.51,0.04499397]
[1762517393088,3.01,153.52,153.51,0.04499397]
[1762517394192,3.01,153.5,153.44,3.06]
[1762517394598,3.01,153.5,153.46,8.9278]
[1762517395000,8.28307216,153.49,153.46,5.8678]
[1762517395199,5.27307216,153.48,153.46,8.97299447]
[1762517395399,5.27307216,153.47,153.46,0.04519447]
[1762517397212,8.28908009,153.47,153.46,0.04519447]
[1762517397411,8.28908009,153.47,153.41,66.3]
[1762517397614,8.28908009,153.46,153.41,69.36]
[1762517397809,3.01,153.44,153.41,66.3]
[1762517398205,3.01,153.47,153.41,66.3]
[1762517398410,5.32578092,153.46,153.42,3.10336141]
[1762517398713,3.05597085,153.46,153.42,3.10336141]
[1762517399311,0.04597085,153.46,153.42,3.10336141]
[1762517400014,3.05597085,153.46,153.42,0.04336141]
[1762517400512,0.04597085,153.46,153.44,3.06]
[1762517401108,0.04597085,153.46,153.42,3.10336141]
[1762517401314,3.05597085,153.46,153.42,3.10336141]
[1762517401717,3.05597085,153.46,153.43,5.8689]
[1762517402808,0.04597085,153.46,153.44,5.8685]
[1762517403017,0.04597085,153.46,153.45,3.06]
[1762517403416,0.04597085,153.46,153.44,8.9285]
[1762517404219,3.05597085,153.46,153.44,5.8685]
[1762517404418,3.05597085,153.46,153.42,8.97256141]
[1762517404620,3.05597085,153.46,153.42,3.10336141]
[1762517405020,3.05597085,153.46,153.42,0.04336141]
[1762517405316,0.04597085,153.46,153.42,3.10336141]
[1762517406017,0.04597085,153.46,153.44,5.8684]
[1762517406918,0.04597085,153.46,153.42,8.97266141]
[1762517407115,3.05597085,153.46,153.42,8.97266141]
[1762517407316,3.05597085,153.46,153.42,3.10336141]
[1762517407515,0.04597085,153.46,153.44,8.9285]
[1762517407715,0.04597085,153.46,153.45,3.06]
[1762517409119,5.31499263,153.52,153.5,5.8662]
[1762517409316,3.01,153.54,153.46,3.06]
[1762517409622,5.31473441,153.53,153.46,3.06]
[1762517409917,3.01,153.54,153.5,5.8662]
[1762517409918,5.31473441,153.52,153.5,5.8662]
[1762517410119,3.01,153.54,153.5,5.8662]
[1762517410318,8.36565986,153.53,153.5,5.8662]
[1762517410522,5.31430832,153.52,153.5,5.8662]
[1762517410719,0.04135154,153.53,153.51,5.8658]
[1762517410921,3.05135154,153.53,153.51,5.8658]
[1762517411510,0.04135154,153.53,153.52,3.06]
[1762517411713,3.01,153.58,153.52,3.06]
[1762517411910,5.31345392,153.57,153.52,3.06]
[1762517412114,9.00972411,153.61,153.52,3.06]
[1762517412322,5.31275876,153.6,153.53,3.06]
[1762517412526,5.31275876,153.59,153.53,3.06]
[1762517412724,0.04350709,153.58,153.55,3.06]
[1762517413222,0.04350709,153.58,153.56,5.8638]
[1762517413618,0.04350709,153.58,153.55,3.06]
[1762517413824,0.04350709,153.58,153.56,5.8639]
[1762517415116,0.04350709,153.58,153.57,3.01]
[1762517415724,9.02972411,153.67,153.59,3.01]
[1762517415923,5.30785428,153.66,153.59,3.01]
[1762517416123,5.30785428,153.65,153.59,3.01]
[1762517416323,5.30785428,153.64,153.59,3.01]
[1762517416628,3.03,153.67,153.59,3.01]
[1762517416824,3.07986537,153.65,153.61,0.04870488]
[1762517417021,3.03,153.63,153.52,282.51921092]
[1762517417221,3.03,153.61,153.52,282.51921092]
[1762517417423,3.03,153.59,153.52,282.51921092]
[1762517417624,3.03,153.56,153.5,3.01]
[1762517417820,3.03,153.56,153.47,3.01]
[1762517418032,3.07247332,153.53,153.5,0.04983547]
[1762517418226,3.07836334,153.53,153.5,0.04720906]
[1762517418533,0.04836334,153.53,153.5,3.05720906]
[1762517418925,0.04836334,153.53,153.5,0.04720906]
[1762517419126,3.07836334,153.53,153.5,0.04720906]
[1762517421123,3.03,153.51,153.5,0.04720906]
[1762517421427,3.03,153.5,153.43,3.01]
[1762517421629,3.03,153.55,153.43,3.01]
[1762517421821,5.30816336,153.54,153.43,3.01]
[1762517422020,5.30816336,153.53,153.47,5.8671]
[1762517422225,8.38422047,153.52,153.48,0.04218381]
[1762517422530,3.07610839,153.52,153.48,0.04218381]
[1762517423934,0.04610839,153.52,153.48,3.05218381]
[1762517424937,3.07610839,153.52,153.48,0.04218381]
[1762517425235,3.07610839,153.52,153.48,5.90908381]
[1762517425638,0.04610839,153.52,153.48,3.05218381]
[1762517426033,0.04610839,153.52,153.5,5.8661]
[1762517426234,0.04610839,153.52,153.5,8.8761]
[1762517426438,0.04610839,153.52,153.51,3.01]
[1762517426631,0.04610839,153.52,153.5,5.8661]
[1762517426830,0.04610839,153.52,153.49,3.01]
[1762517427438,0.04610839,153.52,153.5,5.8661]
[1762517428238,0.04610839,153.52,153.49,3.01]
[1762517429144,3.07610839,153.52,153.48,5.90898381]
[1762517429340,3.07610839,153.52,153.48,0.04218381]
[1762517431138,0.04610839,153.52,153.48,3.05218381]
[1762517431344,0.04610839,153.52,153.49,3.01]
[1762517431737,0.04610839,153.52,153.51,3.01]
[1762517433239,8.893,153.59,153.53,5.8651]
[1762517433439,8.36510883,153.58,153.53,5.8651]
[1762517433640,5.33510883,153.57,153.53,8.8751]
[1762517433841,3.03,153.58,153.53,8.8751]
[1762517434249,8.4077546,153.57,153.54,0.04481272]
[1762517434545,3.07212318,153.57,153.54,0.04481272]
[1762517434743,3.03,153.55,153.54,0.04481272]
[1762517434936,8.36596974,153.55,153.54,0.04481272]
[1762517435646,0.04212318,153.57,153.54,0.04481272]
[1762517435844,5.33682673,153.56,153.54,0.04481272]
[1762517436046,8.36685218,153.55,153.54,0.04481272]
[1762517436350,0.04212318,153.57,153.54,0.04481272]
[1762517436535,8.3663975,153.56,153.54,0.04481272]
[1762517436740,3.03,153.56,153.54,0.04481272]
[1762517437346,5.33641507,153.55,153.54,0.04481272]
[1762517438752,8.36641507,153.55,153.54,0.04481272]
[1762517439652,3.28212318,153.57,153.54,0.04481272]
[1762517439851,8.57644745,153.56,153.54,0.04481272]
[1762517440047,8.57644745,153.55,153.54,0.04481272]
[1762517440445,0.04212318,153.57,153.54,3.08481272]
[1762517440944,3.28212318,153.57,153.54,0.04481272]
[1762517441352,8.57608363,153.56,153.54,0.04481272]
[1762517441545,3.24,153.56,153.54,0.04481272]
[1762517442344,0.04212318,153.57,153.54,3.08481272]
[1762517444549,0.04212318,153.57,153.54,0.04481272]
[1762517445349,3.09212318,153.57,153.54,0.04481272]
[1762517446956,3.05,153.55,153.45,2.98]
[1762517447251,8.38979212,153.54,153.45,2.98]
[1762517447451,5.33979212,153.53,153.45,2.98]
[1762517447654,3.05,153.54,153.45,2.98]
[1762517447948,0.0492153,153.51,153.48,3.02211339]
[1762517448251,3.0992153,153.51,153.49,5.8666]
[1762517448646,3.0992153,153.51,153.48,0.04211339]
[1762517448954,8.9652153,153.51,153.48,0.04211339]
[1762517449252,3.05,153.5,153.48,0.04211339]
[1762517452454,5.34882036,153.49,153.48,0.04211339]
[1762517452641,3.05,153.48,153.4,2.98]
[1762517452842,3.05,153.46,153.36,2.98]
[1762517453042,5.34882036,153.47,153.35,19.85027324]
[1762517453043,5.34882036,153.45,153.4,8.8499]
[1762517453244,5.34882036,153.44,153.4,8.8499]
[1762517453452,3.05,153.45,153.4,8.8499]
[1762517453657,0.04844573,153.44,153.41,0.04579053]
[1762517454356,0.04844573,153.44,153.41,3.02579053]
[1762517454953,0.04844573,153.44,153.42,5.8691]
[1762517456058,0.04844573,153.44,153.43,2.98]
[1762517456453,9.10951251,153.53,153.44,2.98]
[1762517456650,5.34096974,153.52,153.44,2.98]
[1762517456855,3.05,153.56,153.46,2.98]
[1762517457049,3.05,153.54,153.51,5.8657]
[1762517457658,3.05,153.54,153.51,0.04700847]
[1762517457659,3.09667731,153.54,153.51,0.04700847]
[1762517458659,0.04667731,153.54,153.51,0.04700847]
[1762517459157,3.09667731,153.54,153.51,0.04700847]
[1762517460154,8.3917626,153.53,153.51,0.04700847]
[1762517460349,3.05,153.53,153.51,0.04700847]
[1762517460554,3.05,153.51,153.39,2.98]
[1762517460755,3.05,153.49,153.34,1.13412309]
[1762517460956,3.05,153.46,153.36,2.98]
[1762517461158,3.05,153.44,153.36,2.98]
[1762517461357,5.34674564,153.43,153.36,2.98]
[1762517461560,0.04332333,153.41,153.38,0.04300479]
[1762517462553,3.09332333,153.41,153.38,0.04300479]
[1762517462755,0.04332333,153.41,153.38,3.02300479]
[1762517463259,3.05,153.39,153.38,0.04300479]
[1762517463456,8.75178741,153.39,153.38,0.04300479]
[1762517463657,8.75192005,153.39,153.38,0.04300479]
[1762517464167,3.05,153.39,153.38,0.04300479]
[1762517464656,8.74769426,153.39,153.38,0.04300479]
[1762517464856,3.05,153.39,153.38,0.04300479]
[1762517467566,8.73742605,153.39,153.38,0.04300479]
[1762517469857,8.73742605,153.39,153.32,66.2]
[1762517469858,3.05,153.38,153.32,66.2]
[1762517470053,8.73742605,153.37,153.31,2.98]
[1762517470356,5.68742605,153.36,153.32,2.98]
[1762517470559,6.05951251,153.41,153.32,2.98]
[1762517470865,0.04715435,153.38,153.35,3.01148849]
[1762517471473,0.04715435,153.38,153.36,2.98]
[1762517471965,0.04715435,153.38,153.35,0.03148849]
[1762517472363,5.67246313,153.37,153.35,0.03148849]
[1762517472557,3.05,153.37,153.35,0.03148849]
[1762517473466,0.04715435,153.38,153.35,0.03148849]
[1762517473764,3.09715435,153.38,153.35,0.03148849]
[1762517474064,0.04715435,153.38,153.35,8.88318849]
[1762517474269,0.04715435,153.38,153.35,3.01148849]
[1762517475771,0.04715435,153.38,153.35,8.88328849]
[1762517476562,0.04715435,153.38,153.36,8.9712]
[1762517477261,0.04715435,153.38,153.36,3.1]
[1762517477768,0.04715435,153.38,153.35,0.03148849]
[1762517477769,3.26715435,153.38,153.35,0.03148849]
[1762517478163,3.22,153.36,153.35,0.03148849]
[1762517478361,3.26715435,153.38,153.35,0.03148849]
[1762517478560,0.04715435,153.38,153.35,3.13148849]
[1762517480475,0.04715435,153.38,153.35,0.03148849]
[1762517481173,3.26715435,153.38,153.35,0.03148849]
[1762517481467,8.88459694,153.37,153.35,0.03148849]
[1762517481671,3.26715435,153.38,153.35,0.03148849]
[1762517481967,5.66535167,153.37,153.35,5.90328849]
[1762517482168,3.26715435,153.38,153.35,5.90328849]
[1762517482169,0.04715435,153.38,153.36,3.1]
[1762517483172,0.04715435,153.38,153.35,5.90328849]
[1762517483670,5.66512871,153.37,153.35,5.90328849]
[1762517483864,0.04715435,153.38,153.35,9.00328849]
[1762517484066,0.04715435,153.38,153.36,5.8714]
[1762517484375,0.04715435,153.38,153.35,3.13148849]
[1762517485171,3.22,153.37,153.35,5.90328849]
[1762517485371,5.66694919,153.36,153.35,0.03148849]
[1762517485565,8.88694919,153.36,153.35,0.03148849]
[1762517487366,3.22,153.35,153.29,66.22]
[1762517487567,3.22,153.33,153.29,66.22]
[1762517487875,3.22,153.31,153.29,66.22]
[1762517488169,5.66964178,153.3,153.25,5.8754]
[1762517488370,8.93902696,153.29,153.25,8.9754]
[1762517488570,0.04938518,153.29,153.26,3.1]
[1762517488765,0.04938518,153.29,153.27,5.8749]
[1762517488970,0.04938518,153.29,153.28,3.1]
[1762517489570,6.05951251,153.35,153.3,3.1]
[1762517489767,5.67282346,153.34,153.3,3.1]
[1762517489970,5.67282346,153.33,153.3,3.1]
[1762517490270,5.67282346,153.32,153.28,3.1]
[1762517490573,5.67282346,153.31,153.28,3.14938518]
[1762517490773,3.26652233,153.32,153.29,5.8741]
[1762517490973,5.67540783,153.31,153.29,8.9741]
[1762517491168,0.04652233,153.32,153.3,3.1]
[1762517491479,5.66408706,153.31,153.3,3.1]
[1762517493076,5.66408706,153.31,153.3,5.8735]
[1762517493277,5.66408706,153.31,153.3,8.9735]
[1762517493480,0.04652233,153.32,153.31,3.1]
[1762517493774,0.04652233,153.32,153.31,69.32]
[1762517494972,0.04652233,153.32,153.31,66.22]
[1762517495373,3.26652233,153.32,153.28,3.14938518]
[1762517495876,3.26652233,153.32,153.29,5.8741]
[1762517496076,0.04652233,153.32,153.28,3.14938518]
[1762517497067,0.04652233,153.32,153.3,5.8737]
[1762517497378,0.04652233,153.32,153.3,8.9737]
[1762517498377,0.04652233,153.32,153.3,5.8737]
[1762517498578,0.04652233,153.32,153.31,3.1]
[1762517499080,0.04652233,153.32,153.3,5.8737]
[1762517499279,0.04652233,153.32,153.28,3.14938518]
[1762517499577,3.00652233,153.32,153.28,3.14938518]
[1762517500978,3.00652233,153.32,153.29,5.8741]
[1762517501573,2.96,153.31,153.28,0.04938518]
[1762517502168,2.96,153.29,153.24,283.77603267]
[1762517502377,6.05951251,153.32,153.25,3.25]
[1762517502574,13.71981707,153.31,153.27,9.1248]
[1762517502876,2.96,153.3,153.26,69.49]
[1762517503084,9.01951251,153.31,153.27,3.25]
[1762517503380,4.70598931,153.3,153.27,3.25]
[1762517503575,6.10526757,153.31,153.27,3.25]
[1762517503784,4.70484001,153.3,153.27,3.25]
[1762517504082,3.00575506,153.31,153.27,3.25]
[1762517504283,9.06526757,153.31,153.27,3.25]
[1762517504485,4.71152678,153.3,153.27,3.25]
[1762517504775,9.06526757,153.31,153.27,9.1248]
[1762517504981,4.71152678,153.3,153.27,9.1248]
[1762517505177,9.06526757,153.31,153.28,5.8745]
[1762517505373,0.04575506,153.31,153.27,3.25]
[1762517505679,5.55128996,153.3,153.27,3.25]
[1762517505883,0.04575506,153.31,153.28,3.16]
[1762517506084,5.55070745,153.3,153.28,3.16]
[1762517506384,0.04575506,153.31,153.28,3.16]
[1762517506579,5.55186815,153.3,153.28,3.16]
[1762517506779,5.55186815,153.29,153.28,69.4]
[1762517507281,5.55186815,153.29,153.28,66.24]
[1762517508077,5.55186815,153.29,153.26,66.24]
[1762517508278,5.55186815,153.28,153.26,69.4]
[1762517508477,3.26575506,153.31,153.27,3.16]
[1762517508781,10.26330804,153.3,153.27,3.16]
[1762517508975,5.55037416,153.29,153.27,9.0348]
[1762517509181,3.26575506,153.31,153.26,66.24]
[1762517509385,13.48307919,153.3,153.26,66.24]
[1762517509589,5.55030751,153.29,153.26,75.2753]
[1762517509780,5.55030751,153.28,153.26,75.2753]
[1762517509975,3.22,153.3,153.26,66.24]
[1762517510190,3.22,153.28,153.25,66.24]
[1762517510485,5.55068833,153.27,153.25,66.24]
[1762517510681,3.27006936,153.28,153.25,66.24]
[1762517510885,5.55058483,153.27,153.25,66.24]
[1762517511086,3.27006936,153.28,153.25,66.24]
[1762517511290,5.54976857,153.27,153.25,66.24]
[1762517511484,3.27006936,153.28,153.25,66.24]
[1762517511684,13.48265531,153.27,153.25,66.24]
[1762517511888,0.05006936,153.28,153.2,3.16]
[1762517511889,3.22,153.25,153.2,3.16]
[1762517512185,3.22,153.23,153.21,66.24]
[1762517512686,0.0411134,153.24,153.22,3.16]
[1762517513784,0.0411134,153.24,153.22,9.0367]
[1762517513985,6.05951251,153.31,153.23,3.16]
[1762517514186,10.2543176,153.3,153.23,3.16]
[1762517514378,3.22,153.34,153.3,3.16]
[1762517514683,5.54348445,153.33,153.3,3.16]
[1762517514879,15.15081251,153.37,153.31,5.8733]
[1762517515082,3.22,153.35,153.32,0.0411134]
[1762517515279,5.54289236,153.34,153.32,0.0411134]
[1762517515485,5.54289236,153.33,153.32,0.0411134]
[1762517516286,3.22,153.35,153.32,0.0411134]
[1762517516483,5.53520542,153.34,153.32,0.0411134]
[1762517516785,3.22,153.35,153.32,0.0411134]
[1762517516983,5.53533454,153.34,153.32,0.0411134]
[1762517517181,3.26503985,153.36,153.32,3.2011134]
[1762517517381,8.75567661,153.35,153.32,0.0411134]
[1762517517584,3.22,153.33,153.32,0.0411134]
[1762517517890,13.46300814,153.33,153.25,20.6]
[1762517518079,5.53591423,153.32,153.27,5.8748]
[1762517518281,9.0929,153.33,153.27,5.8748]
[1762517518478,3.22,153.35,153.27,3.16]
[1762517518678,0.04786747,153.33,153.3,9.0337]
[1762517519481,0.04786747,153.33,153.31,5.8733]
[1762517521085,0.04786747,153.33,153.3,3.16]
[1762517521285,3.26786747,153.33,153.29,5.8739]
[1762517521590,3.26786747,153.33,153.29,9.0339]
[1762517522188,0.04786747,153.33,153.31,3.16]
[1762517522390,0.04786747,153.33,153.25,17.44]
[1762517522391,0.04786747,153.33,153.28,3.16]
[1762517522693,0.04786747,153.33,153.3,9.0335]
[1762517525484,0.04786747,153.33,153.32,3.16]
[1762517525889,5.55986626,153.33,153.28,3.16]
[1762517526093,0.04786747,153.33,153.28,3.16]
[1762517526590,3.26786747,153.33,153.28,3.16]
[1762517526992,3.26786747,153.33,153.29,5.8741]
[1762517527193,3.26786747,153.33,153.29,9.0341]
[1762517527890,0.04786747,153.33,153.31,3.16]
[1762517528393,0.04786747,153.33,153.32,9.0331]
[1762517529791,0.04786747,153.33,153.32,3.16]
[1762517530789,0.04786747,153.33,153.24,20.35526807]
[1762517530790,13.49064271,153.33,153.29,3.16]
[1762517530986,10.22294747,153.32,153.29,3.16]
[1762517531186,10.22396882,153.31,153.29,9.0341]
[1762517531382,3.26786747,153.33,153.29,9.0341]
[1762517531583,13.44564197,153.32,153.26,41.06]
[1762517531787,10.22564197,153.31,153.27,9.0349]
[1762517531989,10.22564197,153.3,153.27,9.0349]
[1762517532190,3.22,153.32,153.27,9.0349]
[1762517532390,10.22763771,153.31,153.27,9.0349]
[1762517532592,10.22763771,153.3,153.28,5.8745]
[1762517532792,3.22,153.31,153.27,3.16]
[1762517532993,10.22763771,153.3,153.27,3.16]
[1762517533192,3.22,153.31,153.27,9.0348]
[1762517533386,13.44745021,153.3,153.26,41.06]
[1762517533587,3.22,153.3,153.26,41.06]
[1762517533788,10.22828652,153.29,153.26,41.06]
[1762517533992,3.26534294,153.3,153.26,41.06]
[1762517534189,13.44813419,153.29,153.24,3.16]
[1762517534396,10.22813419,153.28,153.24,3.16]
[1762517534596,3.22,153.29,153.24,3.16]
[1762517534899,10.2282733,153.28,153.24,3.16]
[1762517535105,3.22,153.29,153.25,5.8757]
[1762517535295,10.22804427,153.28,153.26,2.99]
[1762517535496,3.09,153.33,153.28,2.99]
[1762517535497,0.0450221,153.29,153.28,2.99]
[1762517535802,0.04497427,153.3,153.28,2.99]
[1762517535999,0.04497427,153.3,153.29,5.8742]
[1762517536190,0.04497427,153.3,153.22,20.35726807]
[1762517536402,0.04497427,153.3,153.23,2.99]
[1762517536598,10.22697703,153.29,153.26,2.99]
[1762517536799,3.13497427,153.3,153.26,2.99]
[1762517537000,10.2270451,153.29,153.26,2.99]
[1762517537200,5.5193244,153.28,153.26,2.99]
[1762517537400,3.13497427,153.3,153.26,2.99]
[1762517537601,10.22726114,153.29,153.26,2.99]
[1762517537796,5.51955516,153.28,153.26,2.99]
[1762517538102,3.13497427,153.3,153.26,8.8652]
[1762517538298,10.22768482,153.29,153.26,2.99]
[1762517538503,0.04497427,153.3,153.26,2.99]
[1762517538696,5.51859968,153.29,153.26,2.99]
[1762517538893,0.04497427,153.3,153.26,2.99]
[1762517539290,3.09,153.28,153.22,69.21]
[1762517539495,0.04456588,153.27,153.23,2.99]
[1762517540201,3.13456588,153.27,153.23,8.8663]
[1762517540402,13.31913574,153.26,153.2,2.99]
[1762517540703,3.09,153.24,153.2,2.99]
[1762517540890,10.23195102,153.23,153.19,5.8778]
[1762517541094,3.09,153.22,153.17,2.99]
[1762517541298,0.04476404,153.21,153.17,2.99]
[1762517542998,0.04476404,153.21,153.19,5.8779]
[1762517543699,0.04476404,153.21,153.2,2.99]
[1762517543902,0.04476404,153.21,153.19,8.8679]
[1762517544098,9.01216404,153.21,153.15,69.21]
[1762517544300,0.04476404,153.21,153.15,2.99]
[1762517544503,13.30745624,153.2,153.15,2.99]
[1762517544703,3.09,153.2,153.15,8.8694]
[1762517544902,3.09,153.2,153.15,2.99]
[1762517545398,0.04476404,153.21,153.16,2.99]
[1762517545996,0.04476404,153.21,153.18,8.8682]
[1762517546397,3.13476404,153.21,153.15,5.8794]
[1762517546593,3.13476404,153.21,153.15,2.99]
[1762517547400,0.04476404,153.21,153.17,5.8787]
[1762517547602,0.04476404,153.21,153.18,2.99]
[1762517548198,0.04476404,153.21,153.18,8.8683]
[1762517548604,0.04476404,153.21,153.19,2.99]
[1762517549106,0.04476404,153.21,153.19,8.8679]
[1762517549307,0.04476404,153.21,153.2,2.99]
[1762517551509,3.13476404,153.21,153.17,66.24]
[1762517551705,3.13476404,153.21,153.17,69.23]
[1762517553704,0.04476404,153.21,153.18,2.99]
[1762517554104,3.09,153.2,153.16,66.26]
[1762517554303,3.09,153.2,153.13,2.99]
[1762517554498,3.09,153.2,153.12,66.26]
[1762517554703,0.04448389,153.18,153.13,2.99]
[1762517554906,3.13448389,153.18,153.13,2.99]
[1762517555106,3.13448389,153.18,153.13,69.25]
[1762517555811,3.13448389,153.18,153.14,2.99]
[1762517556006,0.04448389,153.18,153.14,2.99]
[1762517558402,0.04448389,153.18,153.14,5.15085134]
[1762517558607,0.04448389,153.18,153.15,2.99]
[1762517560913,3.1,153.16,153.1,3.21]
[1762517561112,0.04793027,153.15,153.13,3.21]
[1762517561412,0.0469117,153.16,153.13,9.0902]
[1762517561608,0.04351807,153.16,153.14,5.37085134]
[1762517561812,0.04351807,153.16,153.15,3.21]
[1762517563218,3.1,153.23,153.16,3.21]
[1762517563524,3.1,153.23,153.17,3.21]
[1762517564325,0.04914771,153.22,153.18,3.23459134]
[1762517564519,0.04914771,153.22,153.18,11.27364268]
[1762517564721,0.04914771,153.22,153.19,3.19]
[1762517565516,0.04914771,153.22,153.2,9.0675]
[1762517565718,0.04914771,153.22,153.18,5.39544268]
[1762517566020,3.08914771,153.22,153.18,3.23459134]
[1762517566219,3.08914771,153.22,153.18,0.04459134]
[1762517566522,0.04914771,153.22,153.18,9.11289134]
[1762517566820,0.04914771,153.22,153.19,3.19]
[1762517568228,0.04914771,153.22,153.18,2.20544268]
[1762517568229,0.04914771,153.22,153.2,3.19]
[1762517568520,0.04914771,153.22,153.18,3.23459134]